fUST/lending_fUST_20241205
["ID","MTS","AMOUNT","RATE_DAILY","PERIOD"]
[344324044,1733345444104,-498.40568746,0.00024657,7]
[344324046,1733345444114,-500.0,0.00024657,7]
[344324048,1733345444124,-500.0,0.00024657,2]
[344324050,1733345444135,-6398.7998826,0.00024657,7]
[344324053,1733345444162,-101.4501174,0.00024657,7]
[344324055,1733345444171,-500.0,0.00024657,7]
[344324057,1733345444180,-516.00185164,0.00024657,7]
[344324059,1733345444190,-500.0,0.00024657,7]
[344324061,1733345444200,-500.0,0.00024673,2]
[344324063,1733345444209,-283.9150284,0.00024673,2]
[344324065,1733345444222,-216.0849716,0.00024673,2]
[344324067,1733345444232,-500.0,0.00024673,2]
[344324069,1733345444242,-500.0,0.00024673,2]
[344324071,1733345444251,-322.98738339,0.00024673,2]
[344324073,1733345444260,-823.0,0.00024697,2]
[344324075,1733345444271,-1033.6,0.000247,14]
[344324076,1733345444280,-153.8195847,0.0002474,2]
[344324078,1733345444290,-213.2007628,0.0002474,2]
[344324081,1733345444300,-305.421966,0.0002474,2]
[344324082,1733345444310,-258.2031213,0.0002474,2]
[344324085,1733345444320,-213.2007628,0.0002474,2]
[344324086,1733345444331,-305.421966,0.0002474,2]
[344324088,1733345444344,-153.0,0.0002474,2]
[344324090,1733345444354,-153.0,0.0002474,2]
[344324093,1733345444364,-153.0,0.0002474,2]
[344324095,1733345444375,-153.0,0.0002474,2]
[344324097,1733345444385,-213.2007628,0.0002474,2]
[344324099,1733345444395,-426.4015256,0.0002474,2]
[344324100,1733345444405,-212.4083043,0.0002474,2]
[344324102,1733345444416,-2960.81065898,0.00024831,2]
[344324104,1733345444428,-503.68635376,0.00024931,7]
[344324107,1733345444438,-500.0,0.00024931,7]
[344324108,1733345444449,-500.0,0.00024931,7]
[344324111,1733345444459,-151.0,0.00024931,7]
[344324112,1733345444469,-151.0,0.00024931,7]
[344324115,1733345444479,-151.0,0.00024931,7]
[344324117,1733345444489,-500.0,0.00024931,7]
[344324119,1733345444501,-319.48629957,0.00024931,7]
[344324120,1733345444510,-500.0,0.00024931,7]
[344324123,1733345444520,-502.33450305,0.00024931,7]
[344324125,1733345444530,-500.0,0.00024931,7]
[344324127,1733345444541,-500.0,0.00024931,7]
[344324129,1733345444551,-498.7594429,0.00024931,7]
[344324130,1733345444561,-414.82550118,0.00024931,7]
[344324132,1733345444571,-500.0,0.00024931,7]
[344324134,1733345444580,-500.0,0.00024931,7]
[344324136,1733345444590,-500.0,0.00024931,7]
[344324138,1733345444599,-500.0,0.00024931,7]
[344324140,1733345444609,-500.0,0.00024931,7]
[344324142,1733345444620,-481.37262377,0.00024931,7]
[344324144,1733345444630,-500.0,0.00024931,7]
[344324146,1733345444639,-500.0,0.00024931,7]
[344324148,1733345444649,-500.0,0.00024931,7]
[344324150,1733345444658,-500.0,0.00024931,7]
[344324152,1733345444668,-500.0,0.00024931,7]
[344324154,1733345444678,-500.0,0.00024931,7]
[344324156,1733345444688,-549.2823402,0.00024931,7]
[344324158,1733345444697,-500.0,0.00024931,7]
[344324160,1733345444707,-500.0,0.00024931,7]
[344324162,1733345444718,-504.65292572,0.00024931,7]
[344324164,1733345444727,-500.0,0.00024931,7]
[344324166,1733345444736,-298.306005,0.00024931,7]
[344324168,1733345444746,-298.306005,0.00024931,7]
[344324170,1733345444755,-505.35857486,0.00024931,7]
[344324172,1733345444764,-500.0,0.00024931,7]
[344324174,1733345444775,-500.0,0.00024931,7]
[344324176,1733345444785,-500.0,0.00024931,7]
[344324178,1733345444794,-500.0,0.00024931,7]
[344324180,1733345444804,-151.0,0.00024931,7]
[344324182,1733345444813,-501.79088371,0.00024931,7]
[344324184,1733345444823,-432.64282301,0.00024931,7]
[344324186,1733345444832,-500.91328874,0.00024931,7]
[344324188,1733345444842,-518.04493398,0.00024931,7]
[344324190,1733345444851,-188.94602219,0.00024931,7]
[344324192,1733345444860,-565.56,0.00024931,7]
[344324194,1733345444869,-593.39,0.00024931,7]
[344324196,1733345444879,-615.67006271,0.00024931,7]
[344324198,1733345444888,-500.0,0.00024931,7]
[344324200,1733345444897,-500.0,0.00024931,7]
[344324202,1733345444907,-500.0,0.00024931,7]
[344324204,1733345444917,-500.0,0.00024931,7]
[344324206,1733345444927,-500.0,0.00024931,7]
[344324208,1733345444936,-529.93,0.00024931,7]
[344324210,1733345444946,-500.0,0.00024931,7]
[344324212,1733345444955,-500.0,0.00024931,7]
[344324214,1733345444967,-500.0,0.00024931,7]
[344324216,1733345444976,-554.22,0.00024931,7]
[344324218,1733345444985,-1002.11610377,0.00024931,5]
[344324220,1733345444996,-509.0218995,0.00024931,7]
[344324222,1733345445006,-500.0,0.00024931,7]
[344324224,1733345445016,-277.59818053,0.00024931,7]
[344324226,1733345445026,-500.0,0.00024931,7]
[344324228,1733345445035,-500.0,0.00024931,7]
[344324230,1733345445045,-500.0,0.00024931,7]
[344324232,1733345445054,-500.0,0.00024931,7]
[344324234,1733345445064,-590.782493,0.00024931,7]
[344324236,1733345445073,-500.0,0.00024931,7]
[344324238,1733345445083,-590.782493,0.00024931,7]
[344324240,1733345445093,-500.0,0.00024931,7]
[344324242,1733345445102,-500.0,0.00024931,7]
[344324244,1733345445112,-500.0,0.00024931,7]
[344324246,1733345445122,-500.0,0.00024931,7]
[344324248,1733345445131,-588.07,0.00024931,7]
[344324249,1733345445141,-500.0,0.00024931,7]
[344324252,1733345445167,-500.0,0.00024931,7]
[344324254,1733345445177,-504.61152574,0.00024931,7]
[344324256,1733345445186,-500.0,0.00024931,7]
[344324258,1733345445196,-500.0,0.00024931,7]
[344324260,1733345445206,-500.0,0.00024931,7]
[344324262,1733345445216,-500.0,0.00024931,7]
[344324264,1733345445230,-500.0,0.00024931,7]
[344324266,1733345445239,-500.0,0.00024931,7]
[344324268,1733345445249,-500.0,0.00024931,7]
[344324270,1733345445259,-500.0,0.00024931,7]
[344324272,1733345445269,-500.0,0.00024931,7]
[344324274,1733345445279,-372.9899602,0.00024931,7]
[344324279,1733345445321,-127.0100398,0.00024931,7]
[344324281,1733345445335,-500.0,0.00024931,7]
[344324283,1733345445346,-500.0,0.00024931,7]
[344324285,1733345445355,-500.0,0.00024931,7]
[344324287,1733345445365,-500.0,0.00024931,7]
[344324289,1733345445375,-500.0,0.00024931,7]
[344324291,1733345445385,-151.0,0.00024931,7]
[344324293,1733345445394,-254.268906,0.00024931,7]
[344324295,1733345445404,-1214.55,0.00024931,7]
[344324297,1733345445414,-500.0,0.00024931,7]
[344324299,1733345445424,-500.0,0.00024931,7]
[344324301,1733345445435,-500.0,0.00024931,7]
[344324302,1733345445445,-503.26010965,0.00024931,7]
[344324304,1733345445455,-500.0,0.00024931,7]
[344324306,1733345445465,-500.0,0.00024931,7]
[344324308,1733345445476,-500.0,0.00024931,7]
[344324310,1733345445486,-500.0,0.00024931,7]
[344324312,1733345445496,-500.0,0.00024931,7]
[344324313,1733345445505,-511.94574703,0.00024931,7]
[344324314,1733345445515,-500.0,0.00024931,7]
[344324315,1733345445524,-160.23731872,0.00024931,7]
[344324316,1733345445534,-500.0,0.00024931,7]
[344324317,1733345445543,-500.0,0.00024931,7]
[344324318,1733345445552,-500.0,0.00024931,7]
[344324319,1733345445562,-562.7,0.00024931,7]
[344324320,1733345445572,-1324.493123,0.00024931,7]
[344324321,1733345445582,-500.0,0.00024931,7]
[344324322,1733345445591,-1324.493123,0.00024931,7]
[344324323,1733345445602,-504.19441541,0.00024931,7]
[344324324,1733345445611,-507.70661742,0.00024931,7]
[344324325,1733345445620,-500.0,0.00024931,7]
[344324326,1733345445629,-500.0,0.00024931,7]
[344324327,1733345445639,-558.1442848,0.00024931,7]
[344324328,1733345445648,-500.0,0.00024931,7]
[344324329,1733345445657,-500.0,0.00024931,7]
[344324330,1733345445667,-500.0,0.00024931,7]
[344324331,1733345445676,-505.19775942,0.00024931,7]
[344324332,1733345445685,-500.0,0.00024931,7]
[344324333,1733345445694,-500.0,0.00024931,7]
[344324334,1733345445703,-500.0,0.00024931,7]
[344324335,1733345445713,-500.66837736,0.00024931,2]
[344324336,1733345445722,-500.0,0.00024931,7]
[344324337,1733345445731,-926.61,0.00024931,7]
[344324338,1733345445740,-500.0,0.00024931,7]
[344324339,1733345445750,-539.36798557,0.00024931,7]
[344324340,1733345445759,-504.61534738,0.00024931,7]
[344324341,1733345445769,-500.0,0.00024931,7]
[344324342,1733345445779,-500.0,0.00024931,7]
[344324343,1733345445789,-500.0,0.00024931,7]
[344324344,1733345445798,-500.0,0.00024931,7]
[344324345,1733345445808,-500.0,0.00024931,7]
[344324346,1733345445817,-500.0,0.00024931,7]
[344324347,1733345445826,-500.0,0.00024931,7]
[344324349,1733345445836,-509.49064154,0.00024931,7]
[344324350,1733345445845,-541.17072569,0.00024931,7]
[344324352,1733345445856,-677.238616,0.00024931,7]
[344324353,1733345445867,-677.238616,0.00024931,7]
[344324354,1733345445877,-503.07751323,0.00024931,7]
[344324355,1733345445887,-500.0,0.00024931,7]
[344324356,1733345445897,-500.0,0.00024931,7]
[344324357,1733345445907,-677.238616,0.00024931,7]
[344324359,1733345445918,-677.238616,0.00024931,7]
[344324360,1733345445927,-500.0,0.00024931,7]
[344324361,1733345445937,-502.72312186,0.00024931,7]
[344324363,1733345445947,-500.0,0.00024931,7]
[344324366,1733345445956,-502.53524572,0.00024931,7]
[344324368,1733345445965,-500.0,0.00024931,7]
[344324370,1733345445975,-500.0,0.00024931,7]
[344324372,1733345445984,-500.0,0.00024931,7]
[344324374,1733345445995,-506.91619885,0.00024931,7]
[344324376,1733345446004,-500.0,0.00024931,7]
[344324378,1733345446014,-500.0,0.00024931,7]
[344324380,1733345446024,-502.74468778,0.00024931,7]
[344324382,1733345446033,-269.12359721,0.00024931,7]
[344324384,1733345446044,-263.21503756,0.00024931,7]
[344324386,1733345446054,-316.06807739,0.00024931,7]
[344324388,1733345446063,-500.0,0.00024931,7]
[344324390,1733345446073,-519.7834392,0.00024931,7]
[344324392,1733345446082,-500.0,0.00024931,7]
[344324403,1733345446203,-500.0,0.00024931,7]
[344324405,1733345446214,-500.0,0.00024931,7]
[344324407,1733345446225,-500.0,0.00024931,7]
[344324409,1733345446234,-500.0,0.00024931,7]
[344324411,1733345446244,-500.0,0.00024931,7]
[344324413,1733345446253,-511.88159759,0.00024931,7]
[344324415,1733345446263,-500.0,0.00024931,7]
[344324417,1733345446272,-506.81286703,0.00024931,10]
[344324419,1733345446283,-488.05449548,0.00024931,7]
[344324421,1733345446292,-633.2,0.00024931,7]
[344324423,1733345446302,-291.62283065,0.00024931,7]
[344324425,1733345446312,-500.0,0.00024931,7]
[344324427,1733345446323,-4043.07,0.00024931,7]
[344324429,1733345446334,-200.0,0.00024931,7]
[344324431,1733345446344,-2160.82,0.00024931,7]
[344324433,1733345446353,-501.29653527,0.00024931,7]
[344324435,1733345446364,-500.0,0.00024931,7]
[344324437,1733345446374,-500.0,0.00024931,7]
[344324438,1733345446383,-504.71696133,0.00024931,7]
[344324440,1733345446392,-500.0,0.00024931,7]
[344324442,1733345446402,-500.0,0.00024931,7]
[344324444,1733345446412,-1513.17,0.00024931,7]
[344324446,1733345446422,-500.0,0.00024931,7]
[344324448,1733345446431,-500.0,0.00024931,7]
[344324450,1733345446441,-500.0,0.00024931,7]
[344324452,1733345446450,-500.0,0.00024931,7]
[344324454,1733345446460,-1298.782112,0.00024931,7]
[344324456,1733345446470,-500.0,0.00024931,7]
[344324457,1733345446479,-507.10274069,0.00024931,7]
[344324459,1733345446488,-1298.782112,0.00024931,7]
[344324461,1733345446498,-500.0,0.00024931,7]
[344324463,1733345446507,-502.73433496,0.00024931,7]
[344324465,1733345446517,-511.32563506,0.00024931,7]
[344324467,1733345446526,-500.0,0.00024931,7]
[344324469,1733345446537,-500.0,0.00024931,7]
[344324471,1733345446546,-505.59533234,0.00024931,7]
[344324473,1733345446557,-500.0,0.00024931,7]
[344324475,1733345446567,-500.0,0.00024931,7]
[344324477,1733345446577,-500.0,0.00024931,7]
[344324479,1733345446585,-502.46950618,0.00024931,7]
[344324481,1733345446596,-500.0,0.00024931,7]
[344324483,1733345446604,-500.0,0.00024931,7]
[344324485,1733345446614,-500.0,0.00024931,7]
[344324487,1733345446623,-510.52855981,0.00024931,7]
[344324489,1733345446632,-500.0,0.00024931,7]
[344324490,1733345446642,-505.73657748,0.00024931,7]
[344324492,1733345446659,-500.0,0.00024931,7]
[344324494,1733345446673,-500.0,0.00024931,7]
[344324496,1733345446682,-500.0,0.00024931,7]
[344324498,1733345446691,-500.0,0.00024931,7]
[344324500,1733345446701,-460.90993054,0.00024931,7]
[344324502,1733345446710,-500.0,0.00024931,7]
[344324504,1733345446719,-649.95,0.00024931,7]
[344324505,1733345446728,-500.0,0.00024931,7]
[344324507,1733345446738,-600.45,0.00024931,7]
[344324509,1733345446748,-500.0,0.00024931,7]
[344324511,1733345446758,-913.18,0.00024931,7]
[344324513,1733345446768,-500.0,0.00024931,7]
[344324515,1733345446777,-358.16469911,0.00024931,7]
[344324517,1733345446787,-845.3,0.00024931,7]
[344324519,1733345446796,-500.0,0.00024931,7]
[344324521,1733345446806,-500.0,0.00024931,7]
[344324523,1733345446815,-500.0,0.00024931,7]
[344324525,1733345446827,-500.0,0.00024931,7]
[344324527,1733345446837,-585.2,0.00024931,7]
[344324529,1733345446846,-500.0,0.00024931,7]
[344324531,1733345446855,-500.0,0.00024931,7]
[344324533,1733345446865,-589.66,0.00024931,7]
[344324535,1733345446874,-500.0,0.00024931,7]
[344324537,1733345446884,-514.424196,0.00024931,7]
[344324539,1733345446893,-514.424196,0.00024931,7]
[344324541,1733345446903,-526.27438934,0.00024931,7]
[344324543,1733345446912,-500.0,0.00024931,7]
[344324545,1733345446921,-500.0,0.00024931,7]
[344324547,1733345446930,-500.0,0.00024931,7]
[344324549,1733345446939,-500.0,0.00024931,7]
[344324551,1733345446949,-514.424196,0.00024931,7]
[344324553,1733345446959,-514.424196,0.00024931,7]
[344324555,1733345446968,-1517.17,0.00024931,7]
[344324556,1733345446978,-550.28312268,0.00024931,7]
[344324558,1733345446987,-500.0,0.00024931,7]
[344324560,1733345446996,-500.0,0.00024931,7]
[344324562,1733345447006,-500.0,0.00024931,7]
[344324564,1733345447015,-500.0,0.00024931,7]
[344324566,1733345447025,-500.0,0.00024931,7]
[344324568,1733345447034,-500.0,0.00024931,7]
[344324570,1733345447044,-500.0,0.00024931,7]
[344324572,1733345447053,-500.0,0.00024931,7]
[344324574,1733345447062,-500.0,0.00024931,7]
[344324576,1733345447072,-500.0,0.00024931,7]
[344324578,1733345447082,-773.94,0.00024931,7]
[344324580,1733345447091,-500.0,0.00024931,7]
[344324582,1733345447100,-500.0,0.00024931,7]
[344324583,1733345447109,-206.24404291,0.00024931,7]
[344324585,1733345447119,-1164.91,0.00024931,7]
[344324587,1733345447129,-500.0,0.00024931,7]
[344324589,1733345447139,-500.0,0.00024931,7]
[344324591,1733345447158,-500.0,0.00024931,7]
[344324593,1733345447168,-500.0,0.00024931,7]
[344324595,1733345447178,-163.33316163,0.00024931,7]
[344324597,1733345447190,-500.0,0.00024931,7]
[344324599,1733345447200,-500.0,0.00024931,7]
[344324601,1733345447209,-151.0,0.00024931,7]
[344324603,1733345447218,-500.0,0.00024931,7]
[344324605,1733345447227,-151.0,0.00024931,7]
[344324607,1733345447236,-500.0,0.00024931,7]
[344324609,1733345447246,-501.30483205,0.00024931,7]
[344324611,1733345447255,-500.0,0.00024931,7]
[344324613,1733345447265,-500.0,0.00024931,7]
[344324615,1733345447274,-500.0,0.00024931,7]
[344324617,1733345447284,-500.0,0.00024931,7]
[344324619,1733345447293,-500.0,0.00024931,7]
[344324620,1733345447302,-500.0,0.00024931,7]
[344324622,1733345447311,-500.0,0.00024931,7]
[344324624,1733345447321,-500.0,0.00024931,7]
[344324626,1733345447332,-500.0,0.00024931,7]
[344324628,1733345447344,-500.0,0.00024931,7]
[344324630,1733345447353,-683.98,0.00024931,7]
[344324632,1733345447363,-500.0,0.00024931,7]
[344324634,1733345447374,-500.0,0.00024931,7]
[344324636,1733345447384,-500.0,0.00024931,7]
[344324638,1733345447395,-151.0,0.00024931,7]
[344324640,1733345447411,-151.0,0.00024931,7]
[344324642,1733345447420,-539.19675338,0.00024931,7]
[344324644,1733345447430,-500.0,0.00024931,7]
[344324646,1733345447439,-500.0,0.00024931,7]
[344324648,1733345447448,-500.0,0.00024931,7]
[344324650,1733345447457,-500.0,0.00024931,7]
[344324652,1733345447467,-500.0,0.00024931,7]
[344324654,1733345447476,-500.0,0.00024931,7]
[344324655,1733345447486,-500.0,0.00024931,7]
[344324657,1733345447495,-500.0,0.00024931,7]
[344324659,1733345447505,-500.0,0.00024931,7]
[344324661,1733345447516,-516.2248445,0.00024931,7]
[344324663,1733345447526,-6500.25,0.00024931,7]
[344324665,1733345447535,-500.0,0.00024931,7]
[344324667,1733345447544,-517.97,0.00024931,7]
[344324669,1733345447553,-500.0,0.00024973,2]
[344324671,1733345447563,-290.377345,0.00025,7]
[344324673,1733345447572,-290.377345,0.00025,7]
[344324675,1733345447582,-151.0,0.00025,7]
[344324677,1733345447591,-1298.782112,0.00025,7]
[344324679,1733345447601,-1298.782112,0.00025,7]
[344324681,1733345447611,-151.0,0.00025,7]
[344324683,1733345447620,-151.0,0.00025,7]
[344324685,1733345447629,-18937.45283283,0.00025,2]
[344324698,1733345447757,-501.82872205,0.00024673,2]
[344324700,1733345447767,-19316.54716717,0.00025,2]
[344324701,1733345447777,-585.60411134,0.00025205,7]
[344324703,1733345447787,-151.0,0.00025205,7]
[344324705,1733345447796,-151.0,0.00025205,7]
[344324707,1733345447806,-500.0,0.00025205,7]
[344324709,1733345447815,-500.0,0.00025205,7]
[344324711,1733345447826,-500.0,0.00025205,7]
[344324713,1733345447836,-500.0,0.00025205,7]
[344324715,1733345447846,-500.0,0.00025205,7]
[344324717,1733345447855,-500.0,0.00025205,7]
[344324719,1733345447864,-309.71505697,0.00025205,7]
[344324721,1733345447874,-500.0,0.00025205,7]
[344324723,1733345447883,-500.0,0.00025205,7]
[344324725,1733345447892,-500.0,0.00025205,7]
[344324727,1733345447904,-163.917646,0.00025205,7]
[344324729,1733345447913,-163.917646,0.00025205,7]
[344324731,1733345447922,-136.80504091,0.00025205,7]
[344326554,1733345625193,327.956391,0.00013973,2]
[344326557,1733345675198,1439.58140798,0.00027,30]
[344326571,1733346167265,371.70489895,0.00027,30]
[344326572,1733346225090,161.202834,0.00013973,2]
[344326662,1733346633044,-327.956391,0.00020447,2]
[344326663,1733346633054,-687.026026,0.0002309,2]
[344326664,1733346633065,-300.0,0.00023252,2]
[344326665,1733346633075,-300.0,0.00023252,2]
[344326666,1733346633085,-1465.822583,0.00023253,2]
[344326667,1733346633097,-448.4819378,0.00023253,2]
[344326668,1733346635267,-4656.431439,0.00023253,2]
[344326669,1733346635280,-18329.2640402,0.00023253,2]
[344326670,1733346635290,-191.140566,0.00023426,2]
[344326671,1733346635299,-200.232068,0.00023562,2]
[344326672,1733346635308,-1548.62197702,0.00024549,2]
[344326673,1733346635317,-666.0,0.00024557,2]
[344326674,1733346635327,-174.41857392,0.00024557,2]
[344326675,1733346635336,-500.0,0.00024648,2]
[344326676,1733346635346,-372.04508142,0.00024648,2]
[344326677,1733346635356,-180.0,0.00024648,2]
[344326678,1733346635365,-613.11466663,0.00024648,2]
[344326679,1733346635374,-500.0,0.00024648,2]
[344326680,1733346635383,-500.0,0.00024648,2]
[344326681,1733346635393,-500.0,0.00024648,2]
[344326682,1733346635403,-500.0,0.00024648,2]
[344326683,1733346635412,-500.0,0.00024648,2]
[344326684,1733346635422,-500.0,0.00024648,2]
[344326685,1733346635431,-500.0,0.00024648,2]
[344326686,1733346635441,-500.0,0.00024648,2]
[344326687,1733346635450,-500.0,0.00024648,2]
[344326688,1733346635460,-500.0,0.00024648,2]
[344326689,1733346635472,-500.0,0.00024648,2]
[344326690,1733346635486,-500.0,0.00024648,2]
[344326691,1733346635495,-500.0,0.00024648,2]
[344326692,1733346635506,-500.0,0.00024648,2]
[344326693,1733346635516,-500.0,0.00024648,2]
[344326694,1733346635526,-500.0,0.00024648,2]
[344326695,1733346635535,-500.0,0.00024648,2]
[344326696,1733346635546,-500.0,0.00024648,2]
[344326697,1733346635556,-500.0,0.00024648,2]
[344326698,1733346635566,-500.0,0.00024648,2]
[344326699,1733346635575,-500.0,0.00024648,2]
[344326700,1733346635584,-500.0,0.00024648,2]
[344326701,1733346635594,-500.0,0.00024648,2]
[344326702,1733346635603,-500.0,0.00024648,2]
[344326703,1733346635612,-265.38899089,0.00024648,2]
[344326704,1733346635623,-500.0,0.00024648,2]
[344326705,1733346635632,-500.0,0.00024648,2]
[344326706,1733346635641,-500.0,0.00024648,2]
[344326707,1733346635651,-500.0,0.00024648,2]
[344326708,1733346635660,-500.0,0.00024648,2]
[344326709,1733346635670,-500.0,0.00024648,2]
[344326710,1733346635679,-500.0,0.00024648,2]
[344326711,1733346635689,-500.0,0.00024648,2]
[344326712,1733346635701,-500.0,0.00024648,2]
[344326713,1733346635898,-500.0,0.00024648,2]
[344326714,1733346635909,-500.0,0.00024648,2]
[344326715,1733346635919,-500.0,0.00024648,2]
[344326716,1733346635929,-500.0,0.00024648,2]
[344326717,1733346635938,-500.0,0.00024648,2]
[344326718,1733346635947,-500.0,0.00024648,2]
[344326719,1733346635957,-500.0,0.00024648,2]
[344326720,1733346635966,-500.0,0.00024648,2]
[344326721,1733346635979,-500.0,0.00024648,2]
[344326722,1733346635988,-500.0,0.00024648,2]
[344326723,1733346635998,-500.0,0.00024648,2]
[344326724,1733346636007,-500.0,0.00024648,2]
[344326725,1733346636020,-500.0,0.00024648,2]
[344326726,1733346636030,-500.0,0.00024648,2]
[344326727,1733346636040,-500.0,0.00024648,2]
[344326728,1733346636050,-151.0,0.00024657,7]
[344326729,1733346636060,-151.0,0.00024657,7]
[344326730,1733346636070,-151.0,0.00024657,7]
[344326731,1733346636079,-151.0,0.00024657,7]
[344326732,1733346636088,-151.0,0.00024657,7]
[344326733,1733346636097,-151.0,0.00024657,7]
[344326734,1733346636106,-599.93311304,0.00024657,7]
[344326735,1733346636116,-151.0,0.00024657,7]
[344326736,1733346636125,-151.0,0.00024657,7]
[344326737,1733346636134,-500.0,0.00024657,7]
[344326738,1733346636143,-500.0,0.00024657,7]
[344326739,1733346636152,-500.66726014,0.00024657,7]
[344326740,1733346636161,-557.60908066,0.00024657,7]
[344326741,1733346636171,-500.0,0.00024657,7]
[344326742,1733346636181,-500.0,0.00024657,7]
[344326743,1733346636190,-500.0,0.00024657,7]
[344326744,1733346636200,-500.0,0.00024657,7]
[344326745,1733346636209,-523.15090745,0.00024657,7]
[344326746,1733346636218,-500.0,0.00024657,7]
[344326747,1733346636229,-547.54877004,0.00024657,7]
[344326748,1733346636239,-446.95515569,0.00024657,7]
[344326749,1733346636248,-152.68071892,0.00024657,7]
[344326750,1733346636257,-631.77,0.00024657,7]
[344326751,1733346636266,-500.0,0.00024657,7]
[344326752,1733346636276,-503.33434706,0.00024657,7]
[344326753,1733346636285,-500.0,0.00024657,7]
[344326754,1733346636294,-500.0,0.00024657,7]
[344326755,1733346636304,-206.05122932,0.00024657,7]
[344326756,1733346636313,-500.0,0.00024657,7]
[344326757,1733346636323,-501.53289554,0.00024657,7]
[344326758,1733346636332,-500.0,0.00024657,7]
[344326759,1733346636341,-500.0,0.00024657,7]
[344326760,1733346636350,-500.0,0.00024657,7]
[344326761,1733346636359,-500.0,0.00024657,7]
[344326762,1733346636368,-432.82317968,0.00024657,7]
[344326763,1733346636383,-126.37869826,0.00024657,7]
[344326764,1733346636392,-500.0,0.00024657,7]
[344326765,1733346636401,-526.70814094,0.00024657,7]
[344326766,1733346636411,-500.0,0.00024657,7]
[344326767,1733346636420,-500.0,0.00024657,7]
[344326768,1733346636429,-500.0,0.00024657,7]
[344326769,1733346636439,-500.0,0.00024657,7]
[344326770,1733346636448,-500.0,0.00024657,7]
[344326771,1733346636457,-500.0,0.00024657,7]
[344326772,1733346636467,-500.0,0.00024657,7]
[344326773,1733346636479,-500.0,0.00024657,7]
[344326774,1733346636489,-500.0,0.00024657,7]
[344326775,1733346636498,-500.0,0.00024657,7]
[344326776,1733346636507,-507.05250547,0.00024657,7]
[344326777,1733346636516,-500.0,0.00024657,7]
[344326778,1733346636525,-525.17211525,0.00024657,7]
[344326779,1733346636535,-500.0,0.00024657,7]
[344326780,1733346636545,-595.40261842,0.00024657,7]
[344326781,1733346636555,-500.0,0.00024657,7]
[344326782,1733346636564,-757.89,0.00024657,7]
[344326783,1733346636573,-500.0,0.00024657,7]
[344326784,1733346636583,-506.11030663,0.00024657,7]
[344326785,1733346636592,-500.0,0.00024657,7]
[344326786,1733346636602,-504.58547558,0.00024657,7]
[344326787,1733346636611,-500.0,0.00024657,7]
[344326788,1733346636621,-500.0,0.00024657,7]
[344326789,1733346636630,-500.0,0.00024657,7]
[344326790,1733346636640,-500.0,0.00024657,7]
[344326791,1733346636649,-194.8591485,0.00024657,7]
[344326792,1733346636659,-500.0,0.00024657,7]
[344326793,1733346636669,-500.0,0.00024657,7]
[344326794,1733346636679,-586.52,0.00024657,7]
[344326795,1733346636694,-500.0,0.00024657,7]
[344326796,1733346636704,-500.0,0.00024657,7]
[344326797,1733346636714,-500.0,0.00024657,7]
[344326798,1733346636724,-611.22,0.00024657,7]